[Event "5th Cesme Open 2017"]
[Site "Cesme"]
[Date "2017.06.17"]
[Round "8.18"]
[White "Ozsakallioglu, Okan"]
[Black "Kilic, Efe Mert"]
[Result "0-1"]
[ECO "C25"]
[WhiteElo "1925"]
[BlackElo "2331"]
[Annotator "NA"]
[PlyCount "92"]
[EventType "swiss"]
[EventCountry "TUR"]
[SourceTitle "playchess.com"]
[Source "ChessBase"]
[SourceQuality "1"]
[TimeControl "5400+30"]

{[%evp 15,87,7,19,12,0,-32,-16,-36,-2,-2,-4,0,32767,32767,32767,32767,32767,32767,32767,32767,64,38,43,36,46,53,56,48,47,42,26,27,64,39,51,35,60,24,35,25,34,4,72,73,66,68,66,35,69,50,61,29,29,4,11,-33,32767,32767,167,32767,32767,32767,-347,-442,32767,-504,-605,-554,32767,32767,-1116,32767,32767,-1734]} 1. e4 {[%emt 0:00:30]} e5 {[%emt 0:12:00]} 2. Nc3 {[%emt 0:00:00]} Nc6 {[%emt 0:00:30]} 3. Bc4 {[%emt 0:00:00]} g6 {[%emt 0:00:30] C25: Vienna Game: Alternatives to 2...Nf6} (3... Nf6 4. d3 Na5 5. Nge2 Nxc4 6. dxc4 Bc5 7. O-O d6 8. Qd3 O-O 9. Be3 Nd7 10. Ng3 a5 11. b3 h6 12. Rad1 Re8 13. Nd5 c6 14. Nc3 Bxe3 15. Qxe3 Nc5 16. Rd2 {1-0 (63) Nakamura,H (2787)-Carlsen,M (2853) chess.com INT 2016}) 4. d3 {[%emt 0:00:30]} Bg7 {[%emt 0:00:00]} 5. a3 {[%emt 0:00:30]} d6 {[%emt 0:00:00]} 6. Nge2 {[%emt 0:00:00]} Be6 {[%emt 0:00:30]} 7. O-O {[%emt 0:00:00]} Nge7 {[%emt 0:01:30]} 8. Bxe6 {[%emt 0:07:30]} fxe6 {[%emt 0:00:00]} 9. f4 {[%emt 0:00:30]} O-O {[%emt 0:00:00]} 10. Ng3 {[%emt 0:02:30]} Qd7 {[%emt 0:03:30]} 11. Nce2 $146 {[%emt 0:08:30]} Rf7 {[%emt 0:02:30]} 12. fxe5 {[%emt 0:22:00]} Rxf1+ {[%emt 0:23:30]} 13. Nxf1 {[%emt 0:00:30]} dxe5 {[%emt 0:00:30]} 14. Be3 {[%emt 0:01:30]} Rd8 {[%emt 0:03:30]} 15. Rb1 {[%emt 0:03:30]} Nd4 {[%emt 0:00:30]} 16. Nc1 {[%emt 0:00:30]} a5 {[%emt 0:00:30]} 17. c3 {[%emt 0:00:30]} Ndc6 {[%emt 0:01:30]} 18. Qb3 {[%emt 0:00:30]} b6 {[%emt 0:00:30]} 19. Nd2 {[%emt 0:04:30]} Kh8 {[%emt 0:05:30]} 20. Nf3 {[%emt 0:00:30]} h6 {[%emt 0:00:30]} 21. Qd1 {[%emt 0:00:30]} Nc8 {[%emt 0:01:30]} 22. b3 {[%emt 0:00:30]} Nd6 {[%emt 0:00:30]} 23. Qe1 {[%emt 0:00:30]} Nf7 {[%emt 0:02:30]} 24. Qg3 {[%emt 0:05:30]} Kh7 {[%emt 0:00:30]} 25. Rb2 {[%emt 0:00:30]} a4 {[%emt 0:02:30]} 26. b4 {[%emt 0:06:30]} Na7 {[%emt 0:01:30]} 27. c4 {[%emt 0:00:30]} Nc6 {[%emt 0:00:30]} 28. Re2 {[%emt 0:01:30]} Ne7 {[%emt 0:02:30]} 29. Rd2 {[%emt 0:01:30]} Nc6 {[%emt 0:03:30]} 30. Ne2 {[%emt 0:02:30]} Qe7 {[%emt 0:05:30]} 31. Nh4 {[%emt 0:10:30]} g5 {[%emt 0:03:30]} 32. Nf3 {[%emt 0:00:30]} Nd4 {[%emt 0:00:30]} 33. Bxd4 {[%emt 0:00:30]} exd4 {[%emt 0:00:00]} 34. e5 {[%emt 0:00:30]} c5 {[%emt 0:00:00]} 35. bxc5 {[%emt 0:00:30]} bxc5 {[%emt 0:04:30]} 36. Rb2 {[%emt 0:02:30]} h5 {[%emt 0:17:30]} (36... Qc7 $11) 37. h4 {[%emt 0:05:30]} g4 {[%emt 0:01:30]} 38. Nf4 {[%emt 0:00:00]} gxf3 {[%emt 0:06:15]} 39. Rb6 {[%emt 0:02:00]} Nxe5 {[%emt 0:02:51]} 40. Rxe6 {[%emt 0:01:30]} Qf7 {[%emt 0:00:24]} 41. Nh3 {[%emt 0:01:30]} f2+ {[%emt 0:02:09]} 42. Kf1 {[%emt 0:00:00]} Qf5 {[%emt 0:00:36]} 43. Ng5+ {[%emt 0:02:00]} Kg8 {[%emt 0:01:15]} 44. Re7 $19 {[%emt 0:02:30]} Ng4 {[%emt 0:03:02]} 45. Rf7 {[%emt 0:02:30]} Qxf7 {[%emt 0:03:53]} 46. Nxf7 {[%emt 0:00:00]} Re8 {[%emt 0:00:08]} 0-1

[Event "5th Cesme Open 2017"]
[Site "Cesme"]
[Date "2017.06.17"]
[Round "8.19"]
[White "Arman, Deniz"]
[Black "Maden, Mirac Kerem"]
[Result "0-1"]
[ECO "D00"]
[WhiteElo "2324"]
[BlackElo "1879"]
[Annotator "NA"]
[PlyCount "114"]
[EventType "swiss"]
[EventCountry "TUR"]
[SourceTitle "playchess.com"]
[Source "ChessBase"]
[SourceQuality "1"]
[TimeControl "5400+30"]

1. d4 {[%emt 0:06:30]} Nf6 {[%emt 0:01:00]} 2. Nf3 {[%emt 0:00:30]} e6 {[%emt 0:00:00]} 3. Bf4 {[%emt 0:00:00]} c5 {[%emt 0:00:00]} 4. Nc3 {[%emt 0:03:00]} d5 {[%emt 0:01:30]} 5. e3 {[%emt 0:02:30] D00: 1 d4 d5: Unusual lines} Be7 {[%emt 0:02:30]} (5... a6 6. a3 Nc6 7. Bd3 Bd6 8. dxc5 Bxc5 9. O-O Bd6 10. Bxd6 Qxd6 11. e4 d4 12. Ne2 e5 {½-½ (76) Rapport,R (2691)-Vitiugov,N (2737) Caleta 2014}) 6. Bd3 {[%emt 0:08:30]} c4 $146 {[%emt 0:03:30]} ({Predecessor:} 6... O-O 7. O-O Nc6 8. h3 b6 9. a3 Bb7 10. Re1 Nh5 11. Bh2 f5 12. g4 fxg4 13. hxg4 Nf6 14. g5 Ng4 15. Bf4 Nxf2 16. Kxf2 cxd4 17. Nxd4 Nxd4 {½-½ (73) Farrand,J-Miles,A (2285) Brighton 1972}) 7. Be2 {[%emt 0:00:30]} Bd7 {[%emt 0:04:30]} 8. Ne5 {[%emt 0:02:30]} b5 {[%emt 0:02:30]} 9. Bf3 {[%emt 0:26:30]} b4 {[%emt 0:20:00]} 10. Ne2 {[%emt 0:00:30]} Nc6 {[%emt 0:00:30]} 11. g4 {[%emt 0:01:30]} h6 {[%emt 0:16:30]} 12. h4 {[%emt 0:01:30]} Qa5 {[%emt 0:03:30]} 13. Kf1 {[%emt 0:03:30]} Qb6 {[%emt 0:08:30]} 14. Kg2 {[%emt 0:04:30]} Bc8 {[%emt 0:02:30]} 15. Ng3 {[%emt 0:19:30]} Nd7 {[%emt 0:03:30]} 16. Nh5 {[%emt 0:14:30]} (16. Nxd7 $14 Bxd7 17. Ne2) 16... Ncxe5 {[%emt 0:02:30]} 17. Bxe5 {[%emt 0:00:30]} f6 {[%emt 0:06:30]} (17... Nxe5 $15 18. dxe5 O-O) 18. Bg3 {[%emt 0:01:30]} O-O {[%emt 0:00:30]} 19. Nf4 {[%emt 0:00:30]} Bb7 {[%emt 0:01:30]} 20. Ng6 {[%emt 0:03:30]} Rfe8 {[%emt 0:00:30]} 21. g5 {[%emt 0:02:30]} Kh7 {[%emt 0:03:30]} 22. Bh5 {[%emt 0:01:48]} Nf8 $2 {[%emt 0:00:30]} (22... fxg5 $16 {is a better chance.} 23. Nxe7 Rxe7) 23. gxh6 {[%emt 0:02:22]} Nxg6 {[%emt 0:09:30]} 24. Qg4 {[%emt 0:00:11]} Nxh4+ {[%emt 0:00:30]} 25. Rxh4 {[%emt 0:00:17]} g5 {[%emt 0:00:30]} 26. Bg6+ {[%emt 0:04:22]} Kh8 {[%emt 0:00:00]} 27. Bxe8 {[%emt 0:08:17]} Rxe8 {[%emt 0:00:00]} 28. Rh5 $2 {[%emt 0:01:16]} (28. f4 $18 Rg8 29. h7) 28... Kh7 {[%emt 0:00:30]} 29. Qe2 {[%emt 0:01:09]} (29. f4 $16 f5 30. Qe2) 29... Rg8 {[%emt 0:03:30]} 30. c3 {[%emt 0:02:10]} Bc6 {[%emt 0:00:30]} 31. f4 {[%emt 0:02:10]} Be8 {[%emt 0:01:02]} 32. fxg5 {[%emt 0:00:24]} f5 {[%emt 0:00:24]} 33. Rh2 {[%emt 0:00:42]} Bxg5 {[%emt 0:00:39]} 34. Kf2 {[%emt 0:00:27]} Qa5 {[%emt 0:01:13]} 35. cxb4 {[%emt 0:00:10]} Qxb4 {[%emt 0:00:02]} 36. a3 {[%emt 0:00:40]} Bxe3+ {[%emt 0:01:24]} 37. Kf1 {[%emt 0:00:53]} Rxg3 {[%emt 0:00:36]} 38. Qxe3 {[%emt 0:00:10]} Qd6 {[%emt 0:01:06]} 39. Qe5 {[%emt 0:00:08]} Qxe5 {[%emt 0:01:54]} 40. dxe5 {[%emt 0:00:04]} Rb3 {[%emt 0:00:03]} 41. Rc1 {[%emt 0:00:16]} d4 {[%emt 0:01:36]} 42. Ke1 {[%emt 0:00:08]} Bb5 {[%emt 0:00:56]} 43. Rcc2 {[%emt 0:00:58]} Re3+ {[%emt 0:01:16]} 44. Kd2 {[%emt 0:00:41]} Rxe5 {[%emt 0:00:17]} 45. Rc1 {[%emt 0:00:15]} Rc5 {[%emt 0:03:57]} 46. Rh3 {[%emt 0:01:56]} e5 {[%emt 0:00:19]} 47. Rg1 {[%emt 0:00:03]} Rc7 {[%emt 0:00:12]} 48. Rhg3 {[%emt 0:00:07]} e4 {[%emt 0:00:26]} 49. Rg7+ {[%emt 0:01:45]} Rxg7 {[%emt 0:00:02]} 50. hxg7 {[%emt 0:00:00]} Kg8 {[%emt 0:00:02]} 51. Ke2 {[%emt 0:00:14]} c3+ {[%emt 0:00:32]} 52. Kd1 {[%emt 0:00:08]} d3 {[%emt 0:00:40]} 53. bxc3 {[%emt 0:00:56]} e3 {[%emt 0:00:01]} 54. Kc1 {[%emt 0:00:38]} d2+ {[%emt 0:00:24]} 55. Kc2 {[%emt 0:00:07]} Ba4+ {[%emt 0:00:03]} 56. Kd3 {[%emt 0:00:00]} f4 {[%emt 0:00:09]} 57. Ke2 {[%emt 0:00:25]} a6 $19 {[%emt 0:00:50]} 0-1

[Event "5th Cesme Open 2017"]
[Site "Cesme"]
[Date "2017.06.17"]
[Round "8.20"]
[White "Ainutdinov, Alexander"]
[Black "Tuncer, Tuna"]
[Result "0-1"]
[ECO "B06"]
[WhiteElo "2007"]
[BlackElo "2302"]
[Annotator "NA"]
[PlyCount "104"]
[EventType "swiss"]
[EventCountry "TUR"]
[SourceTitle "playchess.com"]
[Source "ChessBase"]
[SourceQuality "1"]
[TimeControl "5400+30"]

{[%evp 14,104,-3,-21,-27,-61,-46,-70,-51,-63,-54,-61,-51,-48,-66,-61,-11,-17,-6,-22,5,-1,0,0,0,32767,0,-6,11,-4,0,32767,32767,32767,32767,32767,0,-39,-31,-30,-37,32767,-35,32767,32767,-50,-23,-57,-37,32767,-58,-112,-124,-140,32767,32767,-123,32767,32767,32767,32767,32767,32767,32767,32767,32767,32767,32767,32767,32767,32767,32767,32767,32767,32767,-712,32767,32767,32767,32767,32767,32767,-613,32767,32767,32767,32767,-706,-1204,-746,-1469,-1056,-2259]} 1. e4 {[%emt 0:00:30]} g6 {[%emt 0:05:00]} 2. d4 {[%emt 0:00:00]} Bg7 {[%emt 0:00:00]} 3. Nc3 {[%emt 0:01:00]} d6 {[%emt 0:00:00]} 4. Be3 {[%emt 0:01:30]} a6 {[%emt 0:00:30]} 5. h3 {[%emt 0:07:30]} b5 {[%emt 0:00:30] B06: Modern Defence} 6. a3 {[%emt 0:03:30]} (6. Bd3 Nd7 7. Nf3 c5 8. a4 b4 9. Ne2 cxd4 10. Nfxd4 Bb7 11. O-O Ngf6 12. Ng3 O-O 13. Nb3 {1-0 (33) Sebag,M (2496)-Gharamian,T (2654) Cap d'Agde 2015}) 6... Bb7 {[%emt 0:01:30]} 7. Nf3 {[%emt 0:00:30]} Nd7 {[%emt 0:01:30]} 8. d5 {[%emt 0:12:30]} c6 {[%emt 0:15:30]} (8... Bxc3+ $5 9. bxc3 Ngf6 $11) 9. Bd4 {[%emt 0:37:30]} Ngf6 {[%emt 0:03:30]} 10. dxc6 {[%emt 0:04:30]} Bxc6 {[%emt 0:00:00]} 11. Bd3 {[%emt 0:00:30]} Qb8 $146 {[%emt 0:11:00]} ({Predecessor:} 11... O-O 12. O-O Qc7 13. Re1 {½-½ (23) Jiang,L (2072)-Yoos,J (2369) Montreal 2007}) 12. O-O {[%emt 0:03:30]} Qb7 {[%emt 0:01:30]} 13. Re1 {[%emt 0:00:30]} O-O {[%emt 0:00:30]} 14. Nd2 {[%emt 0:04:30]} Rad8 {[%emt 0:04:30]} (14... e5 $5 15. Be3 $8 Nc5 $15) 15. Nb3 {[%emt 0:04:30]} Qc7 {[%emt 0:03:30]} 16. Nd5 {[%emt 0:01:30]} Nxd5 {[%emt 0:20:30]} 17. Bxg7 {[%emt 0:00:30]} Kxg7 {[%emt 0:01:30]} 18. exd5 {[%emt 0:01:30]} Bxd5 {[%emt 0:00:30]} 19. Rxe7 {[%emt 0:00:30]} Bxb3 {[%emt 0:05:30]} 20. cxb3 {[%emt 0:01:30]} Qb6 {[%emt 0:01:30]} 21. Rc1 {[%emt 0:11:30]} Rfe8 {[%emt 0:02:30]} 22. Qe1 {[%emt 0:02:30]} Ne5 {[%emt 0:00:00]} 23. Rxe8 {[%emt 0:00:30]} Rxe8 {[%emt 0:00:00]} 24. Qc3 {[%emt 0:00:30]} d5 {[%emt 0:02:30]} 25. Kf1 {[%emt 0:01:30]} d4 {[%emt 0:02:30]} 26. Qd2 {[%emt 0:00:30]} Qd6 {[%emt 0:02:30]} 27. Kg1 {[%emt 0:05:50]} Qe6 {[%emt 0:04:30]} 28. b4 {[%emt 0:00:37]} Qxh3 {[%emt 0:02:08]} 29. gxh3 {[%emt 0:06:19]} Nf3+ {[%emt 0:00:06]} 30. Kg2 {[%emt 0:00:18]} Nxd2 {[%emt 0:00:05]} 31. Rd1 {[%emt 0:00:49]} Ne4 {[%emt 0:01:22]} 32. Re1 {[%emt 0:00:53]} Nf6 {[%emt 0:00:29]} 33. Rc1 {[%emt 0:01:09]} Re6 {[%emt 0:00:49]} 34. Rc5 {[%emt 0:01:41] [#]} Rd6 {[%emt 0:00:55]} (34... Nh5 $1 $19 {[%cal Rh5f4]} 35. Kf3 Rf6+ 36. Ke4 Rf4+ 37. Ke5 Rxf2) 35. Kf3 {[%emt 0:00:35]} Nd7 {[%emt 0:08:29]} 36. Rc7 {[%emt 0:01:37]} Ne5+ {[%emt 0:01:28]} 37. Ke2 {[%emt 0:00:28]} h5 {[%emt 0:03:26]} 38. b3 {[%emt 0:00:21]} Nxd3 {[%emt 0:01:30]} 39. Kxd3 {[%emt 0:00:12]} h4 {[%emt 0:00:06]} 40. Rb7 {[%emt 0:02:12]} Rf6 {[%emt 0:00:26]} 41. Kxd4 {[%emt 0:00:49]} Rf3 {[%emt 0:00:06]} 42. a4 {[%emt 0:00:44]} Rxb3 {[%emt 0:00:29]} 43. Kc5 {[%emt 0:01:48]} bxa4 {[%emt 0:00:57]} 44. Ra7 {[%emt 0:00:40]} Rxh3 {[%emt 0:01:04]} 45. Rxa6 {[%emt 0:00:11]} Rf3 {[%emt 0:00:35]} 46. b5 {[%emt 0:02:51]} h3 {[%emt 0:01:05]} 47. Rxa4 {[%emt 0:00:48]} h2 {[%emt 0:00:25]} 48. Ra1 {[%emt 0:02:33]} Rxf2 {[%emt 0:00:14]} 49. b6 {[%emt 0:00:04]} Rb2 {[%emt 0:00:05]} 50. Rh1 {[%emt 0:00:22] [#]} g5 $1 {[%emt 0:00:08]} 51. b7 {[%emt 0:00:50]} Rxb7 {[%emt 0:00:09]} 52. Rxh2 {[%emt 0:00:08]} Rd7 $19 {[%emt 0:00:04]} 0-1

[Event "5th Cesme Open 2017"]
[Site "Cesme"]
[Date "2017.06.17"]
[Round "8.21"]
[White "Kuyucuogullari, Cagakan"]
[Black "Tokat, Nehir"]
[Result "0-1"]
[ECO "D85"]
[WhiteElo "1505"]
[BlackElo "1493"]
[Annotator "NA RC"]
[PlyCount "142"]
[EventType "swiss"]
[EventCountry "TUR"]
[SourceTitle "playchess.com"]
[Source "ChessBase"]
[SourceQuality "1"]
[TimeControl "5400+30"]

1. d4 Nf6 2. c4 g6 3. Nc3 d5 4. cxd5 Nxd5 5. Na4 Nf6 6. Nf3 Bg7 7. e3 O-O 8. Bd3 a6 9. O-O Nbd7 10. Qc2 b5 11. Nc5 Nd5 12. Bd2 {[%emt 0:25:00]} Nxc5 {[%emt 0:21:30]} 13. Qxc5 {[%emt 0:00:30]} Qd6 {[%emt 0:06:30]} 14. Rac1 {[%emt 0:03:30]} Bb7 {[%emt 0:06:30]} 15. Ng5 {[%emt 0:35:30]} Qxc5 {[%emt 0:01:30]} 16. Rxc5 {[%emt 0:00:30]} h6 {[%emt 0:00:30]} 17. Nf3 {[%emt 0:05:30]} Rac8 {[%emt 0:00:30]} 18. Ba5 {[%emt 0:00:30]} c6 {[%emt 0:07:30]} 19. Rfc1 {[%emt 0:01:30]} g5 {[%emt 0:11:30]} 20. h3 {[%emt 0:00:30]} f5 {[%emt 0:01:30]} 21. Kh2 {[%emt 0:04:30]} e6 {[%emt 0:07:30]} 22. a3 {[%emt 0:03:30]} Bf6 {[%emt 0:00:30]} 23. R5c2 {[%emt 0:00:45]} Be7 {[%emt 0:06:30]} 24. Kg1 {[%emt 0:03:25]} Bd6 {[%emt 0:01:30]} 25. Be2 {[%emt 0:01:12]} Kg7 {[%emt 0:06:30]} 26. Nd2 {[%emt 0:03:42]} e5 {[%emt 0:03:30]} 27. Nb3 {[%emt 0:00:15]} Rce8 {[%emt 0:01:43]} 28. Bf3 {[%emt 0:03:56]} e4 {[%emt 0:02:56]} 29. Bh5 {[%emt 0:00:06]} Re7 {[%emt 0:01:14]} 30. Bd2 {[%emt 0:00:50]} Rc7 {[%emt 0:02:04]} 31. Na5 {[%emt 0:00:18]} Ne7 {[%emt 0:00:48]} 32. Bd1 {[%emt 0:01:43]} Ba8 {[%emt 0:01:11]} 33. Nb3 {[%emt 0:01:11]} Bb7 {[%emt 0:00:43]} 34. Nc5 {[%emt 0:00:46]} Bxc5 {[%emt 0:00:23]} 35. Rxc5 {[%emt 0:00:01]} Nd5 {[%emt 0:00:41]} 36. Bb3 {[%emt 0:00:17]} Rcc8 {[%emt 0:00:19]} 37. Bb4 {[%emt 0:02:10]} Nxb4 {[%emt 0:01:21]} 38. axb4 {[%emt 0:00:02]} Kf6 {[%emt 0:00:37]} 39. Re5 {[%emt 0:00:47]} Rce8 {[%emt 0:00:46]} 40. Rcc5 {[%emt 0:00:08]} Rxe5 {[%emt 0:00:33]} 41. Rxe5 {[%emt 0:00:02]} Bc8 {[%emt 0:00:25]} 42. Kf1 {[%emt 0:00:44]} Bd7 {[%emt 0:00:40]} 43. Ke2 {[%emt 0:00:16]} Re8 {[%emt 0:00:31]} 44. Rc5 {[%emt 0:00:05]} h5 {[%emt 0:03:05]} 45. g3 {[%emt 0:01:10]} h4 {[%emt 0:00:37]} 46. Kf1 {[%emt 0:01:19]} Rh8 {[%emt 0:01:09]} 47. Kg2 {[%emt 0:00:34]} hxg3 {[%emt 0:00:42]} 48. fxg3 {[%emt 0:00:28]} f4 {[%emt 0:01:42]} 49. gxf4 {[%emt 0:00:41]} gxf4 {[%emt 0:00:14]} 50. exf4 {[%emt 0:02:19]} Bxh3+ {[%emt 0:00:48]} 51. Kf2 {[%emt 0:00:47]} Bd7 {[%emt 0:00:08]} 52. Bc2 {[%emt 0:01:18]} Rh2+ {[%emt 0:05:11]} 53. Ke3 {[%emt 0:00:16]} Rg2 {[%emt 0:01:43]} 54. Kxe4 {[%emt 0:01:07]} Rxc2 {[%emt 0:00:18]} 55. Rh5 {[%emt 0:01:35]} Rxb2 {[%emt 0:00:31]} 56. Rh6+ {[%emt 0:00:20]} Kg7 {[%emt 0:00:30]} 57. Rd6 {[%emt 0:00:18]} Be8 {[%emt 0:00:07]} 58. Rd8 {[%emt 0:00:50]} Kf7 {[%emt 0:00:25]} 59. Ra8 {[%emt 0:00:39]} Rxb4 {[%emt 0:00:23]} 60. Rxa6 {[%emt 0:00:24]} c5 {[%emt 0:00:26]} 61. Ra7+ {[%emt 0:01:19]} Kf8 {[%emt 0:00:20]} 62. Ke5 {[%emt 0:00:29]} Rxd4 {[%emt 0:00:41]} 63. Rc7 {[%emt 0:00:50]} Rc4 {[%emt 0:00:27]} 64. f5 {[%emt 0:00:27]} b4 {[%emt 0:01:06]} 65. Kf6 {[%emt 0:00:33]} b3 {[%emt 0:00:30]} 66. Rh7 {[%emt 0:00:27]} Rg4 {[%emt 0:00:10]} 67. Rh8+ {[%emt 0:00:47]} Rg8 {[%emt 0:00:02]} 68. Rh3 {[%emt 0:00:45]} c4 {[%emt 0:00:21]} 69. Ke5 {[%emt 0:00:34]} b2 {[%emt 0:00:28]} 70. Rh1 {[%emt 0:00:12]} c3 {[%emt 0:00:29]} 71. f6 {[%emt 0:00:33]} c2 {[%emt 0:00:22]} 0-1

[Event "5th Cesme Open 2017"]
[Site "Cesme"]
[Date "2017.06.17"]
[Round "8.22"]
[White "Barik, Ertunc Bahadir"]
[Black "Daloglu, Berkay"]
[Result "0-1"]
[ECO "A36"]
[WhiteElo "1538"]
[BlackElo "1659"]
[Annotator "NA"]
[PlyCount "87"]
[EventType "swiss"]
[EventCountry "TUR"]
[SourceTitle "playchess.com"]
[Source "ChessBase"]
[SourceQuality "1"]
[TimeControl "5400+30"]

1. c4 c5 2. Nc3 Nc6 3. g3 g6 4. e4 Bg7 5. Bg2 Nf6 6. Nge2 e5 7. O-O O-O 8. d3 h6 9. f4 d6 10. h3 Nd4 11. Be3 Nh5 12. Qd2 {[%emt 0:12:00]} Kh7 {[%emt 0:34:30]} 13. Kh2 {[%emt 0:01:30]} a6 {[%emt 0:04:30]} 14. fxe5 {[%emt 0:02:30]} dxe5 {[%emt 0:03:30]} 15. g4 {[%emt 0:00:30]} Nf6 {[%emt 0:02:30]} 16. g5 {[%emt 0:02:30]} Ng8 {[%emt 0:04:30]} 17. Ng3 {[%emt 0:05:30]} hxg5 {[%emt 0:08:30]} 18. Bxg5 {[%emt 0:01:30]} f6 {[%emt 0:03:30]} 19. Be3 {[%emt 0:00:30]} Bh6 {[%emt 0:01:30]} 20. Rf2 {[%emt 0:02:30]} Bxe3 {[%emt 0:03:30]} 21. Qxe3 {[%emt 0:00:30]} Be6 {[%emt 0:01:30]} 22. Nd5 {[%emt 0:02:30]} Bxd5 {[%emt 0:07:30]} 23. exd5 {[%emt 0:01:30]} Rc8 {[%emt 0:01:30]} 24. Raf1 {[%emt 0:04:30]} Rc7 {[%emt 0:08:58]} 25. Ne4 {[%emt 0:06:30]} Nf5 {[%emt 0:05:53]} 26. Rxf5 {[%emt 0:13:30]} gxf5 {[%emt 0:00:05]} 27. Rxf5 {[%emt 0:00:00]} Qe8 {[%emt 0:04:56]} 28. Nd6 {[%emt 0:02:00]} Qg6 {[%emt 0:02:22]} 29. Be4 {[%emt 0:00:30]} Kh8 {[%emt 0:02:11]} 30. Rxe5 {[%emt 0:01:30]} Qh6 {[%emt 0:01:56]} 31. Qxh6+ {[%emt 0:03:30]} Nxh6 {[%emt 0:00:01]} 32. Re8 {[%emt 0:01:30]} Kg7 {[%emt 0:01:15]} 33. Nf5+ {[%emt 0:02:30]} Nxf5 {[%emt 0:00:17]} 34. Rxf8 {[%emt 0:00:30]} Kxf8 {[%emt 0:00:08]} 35. Bxf5 {[%emt 0:00:00]} Re7 {[%emt 0:01:37]} 36. Be4 {[%emt 0:01:00]} f5 {[%emt 0:00:20]} 37. d6 {[%emt 0:04:30]} Re6 {[%emt 0:01:27]} 38. Bxb7 {[%emt 0:09:30]} Rxd6 {[%emt 0:00:03]} 39. h4 {[%emt 0:09:57]} Rb6 {[%emt 0:00:13]} 40. Bc8 {[%emt 0:01:32]} Rxb2+ {[%emt 0:00:31]} 41. Kg3 {[%emt 0:00:08]} Rxa2 {[%emt 0:00:23]} 42. Kf4 {[%emt 0:00:31]} a5 {[%emt 0:00:52]} 43. Bxf5 {[%emt 0:04:10]} Rf2+ {[%emt 0:00:12]} 44. Ke4 {[%emt 0:02:14]} 0-1

[Event "5th Cesme Open 2017"]
[Site "Cesme"]
[Date "2017.06.17"]
[Round "8.23"]
[White "Rahmani, Jamshid"]
[Black "Bektas, Cagan Erdem"]
[Result "0-1"]
[ECO "D03"]
[WhiteElo "1692"]
[BlackElo "1319"]
[Annotator "NA RC"]
[PlyCount "64"]
[EventType "swiss"]
[EventCountry "TUR"]
[SourceTitle "playchess.com"]
[Source "ChessBase"]
[SourceQuality "1"]
[TimeControl "5400+30"]

1. d4 Nf6 2. Nf3 e6 3. Bg5 Be7 4. e3 O-O 5. Bd3 d5 6. Nbd2 Nbd7 7. Qe2 c5 8. c3 b6 9. O-O Bb7 10. Rac1 Rc8 11. Bb1 Re8 12. Bh4 h6 13. Qd3 Qc7 14. Bg3 {[%emt 0:15:00]} Bd6 {[%emt 0:33:30]} 15. Bxd6 {[%emt 0:03:30]} Qxd6 {[%emt 0:00:00]} 16. Rfe1 {[%emt 0:00:30]} Qc7 {[%emt 0:03:00]} 17. e4 {[%emt 0:01:30]} dxe4 {[%emt 0:01:30]} 18. Nxe4 {[%emt 0:00:30]} Bxe4 {[%emt 0:01:30]} 19. Rxe4 {[%emt 0:00:30]} Nxe4 {[%emt 0:00:00]} 20. Qxe4 {[%emt 0:00:30]} Nf6 {[%emt 0:01:00]} 21. Qd3 {[%emt 0:00:30]} cxd4 {[%emt 0:02:30]} 22. Nxd4 {[%emt 0:01:30]} Red8 {[%emt 0:01:30]} 23. Qe3 {[%emt 0:01:30]} Ng4 {[%emt 0:05:30]} 24. Qe4 {[%emt 0:11:30]} Qxh2+ {[%emt 0:03:30]} 25. Kf1 {[%emt 0:00:00]} Qh1+ {[%emt 0:00:00]} 26. Ke2 {[%emt 0:00:00]} Qxc1 {[%emt 0:01:00]} 27. Qh7+ {[%emt 0:00:30]} Kf8 {[%emt 0:00:30]} 28. Qh8+ {[%emt 0:04:30]} Ke7 {[%emt 0:00:30]} 29. Qxg7 {[%emt 0:00:30]} Qxb1 {[%emt 0:01:30]} 30. Qxg4 {[%emt 0:00:30]} Qxb2+ {[%emt 0:00:30]} 31. Kd1 {[%emt 0:01:30]} Qxc3 {[%emt 0:01:30]} 32. Qh4+ {[%emt 0:00:30]} f6 {[%emt 0:00:30]} 0-1

[Event "5th Cesme Open 2017"]
[Site "Cesme"]
[Date "2017.06.17"]
[Round "8.24"]
[White "Tarhan, Adar"]
[Black "Ersoy, Bora"]
[Result "1/2-1/2"]
[ECO "B06"]
[WhiteElo "1587"]
[BlackElo "1675"]
[Annotator "NA"]
[PlyCount "83"]
[EventType "swiss"]
[EventCountry "TUR"]
[SourceTitle "playchess.com"]
[Source "ChessBase"]
[SourceQuality "1"]
[TimeControl "5400+30"]

1. e4 g6 2. d4 Bg7 3. Nf3 c5 4. Be3 d6 5. Bb5+ Bd7 6. Bxd7+ Nxd7 7. O-O cxd4 8. Bxd4 Ngf6 9. Re1 O-O 10. c4 e5 11. Bc3 Nc5 12. Qc2 Rc8 13. Nbd2 Nh5 14. Rad1 {[%emt 0:11:00]} Qe7 {[%emt 0:50:30]} 15. b3 {[%emt 0:00:30]} f5 {[%emt 0:01:30]} 16. Bb4 {[%emt 0:00:30]} Qf6 {[%emt 0:02:30]} 17. Bxc5 {[%emt 0:01:30]} Rxc5 {[%emt 0:00:00]} 18. Nf1 {[%emt 0:00:00]} f4 {[%emt 0:00:00]} 19. Qd3 {[%emt 0:00:00]} Rd8 {[%emt 0:01:30]} 20. b4 {[%emt 0:01:30]} Rcc8 {[%emt 0:01:30]} 21. Qd5+ {[%emt 0:00:30]} Qf7 {[%emt 0:04:30]} 22. c5 {[%emt 0:00:30]} Qxd5 {[%emt 0:05:30]} 23. Rxd5 {[%emt 0:00:30]} dxc5 {[%emt 0:00:30]} 24. Rxc5 {[%emt 0:00:30]} Rxc5 {[%emt 0:06:30]} 25. bxc5 {[%emt 0:02:30]} Bf6 {[%emt 0:01:30]} 26. Rb1 {[%emt 0:00:30]} Rd7 {[%emt 0:00:00]} 27. g4 {[%emt 0:01:30]} fxg3 {[%emt 0:00:00]} 28. hxg3 {[%emt 0:00:00]} Ng7 {[%emt 0:01:30]} 29. Ne3 {[%emt 0:00:00]} Ne6 {[%emt 0:00:30]} 30. Ng4 {[%emt 0:00:30]} Be7 {[%emt 0:02:30]} 31. Ngxe5 {[%emt 0:00:30]} Rc7 {[%emt 0:00:30]} 32. Nd3 {[%emt 0:01:30]} Nxc5 {[%emt 0:00:30]} 33. Nxc5 {[%emt 0:01:30]} Bxc5 {[%emt 0:00:00]} 34. Kg2 {[%emt 0:00:30]} b6 {[%emt 0:00:00]} 35. Ng5 {[%emt 0:00:30]} Re7 {[%emt 0:00:30]} 36. f3 {[%emt 0:00:30]} h6 {[%emt 0:00:30]} 37. Nh3 {[%emt 0:00:00]} Rd7 {[%emt 0:00:00]} 38. Rb2 {[%emt 0:00:00]} Rd1 {[%emt 0:02:00]} 39. Nf4 {[%emt 0:00:30]} Kf7 {[%emt 0:00:30]} 40. Ne2 {[%emt 0:02:30]} Kf6 {[%emt 0:00:30]} 41. Nc3 {[%emt 0:00:30]} Rc1 {[%emt 0:04:30]} 42. Nb5 {[%emt 0:02:30]} 1/2-1/2